[Event "Prague Festival-Masters 2022"]
[Site "Prague"]
[Date "2022.06.11"]
[Round "4.2"]
[White "Navara, David"]
[Black "Salem, A.R. Saleh"]
[Result "1-0"]
[ECO "D85"]
[WhiteElo "2682"]
[BlackElo "2690"]
[Annotator "TA"]
[PlyCount "75"]
[EventDate "2022.06.07"]
[EventType "tourn"]
[EventCountry "CZE"]
[SourceTitle "playchess.com"]
[Source "ChessBase"]
[SourceQuality "1"]
[TimeControl "40/5400+30:1800+30"]

{[%evp 16,75,24,20,20,5,18,6,11,22,24,0,60,53,46,52,42,47,52,45,56,36,39,35,41,39,37,35,41,40,42,41,36,27,38,64,77,12,21,8,14,29,17,17,106,112,98,102,1195,1110,1445,1344,2351,2203,2283,1993,1545,1346,29973,29974,29985,29985]} 1. d4 {[%emt 0:00:02]} Nf6 {[%emt 0:00:07]} 2. c4 {[%emt 0:00:04]} g6 {[%emt 0:00:05]} 3. Nc3 {[%emt 0:00:05]} d5 {[%emt 0:00:04]} 4. cxd5 {[%emt 0:00:05]} Nxd5 {[%emt 0:00:03]} 5. e4 {[%emt 0:00:09]} Nxc3 {[%emt 0:00:03]} 6. bxc3 {[%emt 0:00:06]} Bg7 {[%emt 0:00:05]} 7. Be3 {[%emt 0:00:07]} c5 {[%emt 0:00:14]} 8. Rc1 {[%emt 0:00:28]} O-O {[%emt 0:01:12]} 9. Qd2 {[%emt 0:00:08]} Nd7 {[%emt 0:00:24] D85: Exchange Grünfeld: Unusual White 7th moves and lines with 7 Nf3.} 10. Bd3 {[%emt 0:03:52]} e5 {[%emt 0:00:58]} 11. d5 {[%emt 0:00:07]} f5 {[%emt 0:00:07] The position is equal.} 12. Bg5 {[%emt 0:00:08] [#]} Bf6 $146 {[%emt 0:06:37]} ({Predecessor:} 12... Nf6 13. c4 Qd6 14. Ne2 h6 15. Bxf6 Rxf6 16. Nc3 Bd7 17. Rb1 Rb8 18. Bc2 a6 19. a4 b6 20. f3 h5 21. Bd3 Kh7 22. Qe2 {½-½ (22) Petrosyan,M (2569)-Erdos,V (2627) Batumi 2018}) 13. h4 {[%emt 0:04:28]} f4 {[%emt 0:04:27]} (13... Bxg5 $11 14. hxg5 Nb6) 14. Nf3 $14 {[%emt 0:00:50]} Kg7 {[%emt 0:03:04]} 15. c4 {[%emt 0:11:04]} h6 {[%emt 0:05:09]} 16. Bxf6+ {[%emt 0:00:19]} Qxf6 {[%emt 0:00:20]} 17. Qc3 {[%emt 0:02:11]} Re8 {[%emt 0:00:14]} 18. Bc2 {[%emt 0:05:49]} Nb6 {[%emt 0:04:24]} 19. a4 {[%emt 0:14:27][%cal Ba2a4,Ba4a5][%mdl 32]} Bd7 {[%emt 0:00:30]} 20. Rb1 {[%emt 0:04:14] [#] aiming for a5.} Rab8 {[%emt 0:00:59]} 21. Nd2 {[%emt 0:01:24]} Nc8 {[%emt 0:09:55]} (21... Nxa4 22. Qa3 b5 23. Bxa4 (23. cxb5 Nb6 $14) 23... bxa4 24. Rxb8 Rxb8 25. Qxc5 $16) 22. Qa3 {[%emt 0:06:57]} b6 {[%emt 0:09:49]} 23. a5 {[%emt 0:00:12]} Nd6 {[%emt 0:00:10]} 24. Ba4 {[%emt 0:01:37]} b5 {[%emt 0:02:37]} 25. cxb5 {[%emt 0:00:21]} Bxb5 {[%emt 0:00:07] [#]} 26. Bxb5 {[%emt 0:03:26]} (26. Qxc5 $1 $16 Rbc8 27. Qb4 (27. Qxa7+ $2 Re7 $19)) 26... Nxb5 $11 {[%emt 0:01:41]} 27. Qh3 {[%emt 0:01:02][%cal Ob1b5]} (27. Qxc5 Rec8 28. Rxb5 (28. Qb4 $2 Nc3 $19) 28... Rxc5 29. Rxc5 f3 30. gxf3 (30. Rc7+ $2 Kf8 $19) 30... Qa6 $17) 27... Nd4 {[%emt 0:05:28]} 28. O-O {[%emt 0:01:01] And now Rxb8 would win.} h5 $1 {[%emt 0:10:37]} 29. Nf3 {[%emt 0:05:59]} Nxf3+ {[%emt 0:00:09]} (29... Qe7 $11 {keeps the balance.}) 30. gxf3 $16 {[%emt 0:09:40] Rxb8 is the strong threat.} Kh6 {[%emt 0:01:53]} 31. Rfc1 {[%emt 0:02:25][%cal Bf1c1,Bc1c5,Bc5c6][%mdl 32] Strongly threatening Rxb8.} Red8 {[%emt 0:10:44][%mdl 8192] Loses the game.} (31... Qe7 $16) 32. Rxb8 $18 {[%emt 0:03:49]} Rxb8 {[%emt 0:00:02]} 33. Rxc5 {[%emt 0:00:17] Black must now prevent Rc7. KQR-KQR} Rb1+ {[%emt 0:04:07]} 34. Kg2 {[%emt 0:04:17] Qc8 would kill now.} Qa6 {[%emt 0:18:12]} 35. Kh2 {[%emt 0:00:18]} Qf6 {[%emt 0:02:03]} 36. Rc6 {[%emt 0:00:48]} Qd8 {[%emt 0:00:20]} 37. Kg2 {[%emt 0:00:46]} a6 {[%emt 0:01:27]} 38. Qf5 {[%emt 0:02:30] Weighted Error Value: White=0.07 (flawless) /Black=0.41} 1-0

[Event "Prague Festival-Masters 2022"]
[Site "Prague"]
[Date "2022.06.11"]
[Round "4.3"]
[White "Maghsoodloo, Parham"]
[Black "Harikrishna, Pentala"]
[Result "0-1"]
[ECO "D12"]
[WhiteElo "2699"]
[BlackElo "2705"]
[Annotator "TA"]
[PlyCount "148"]
[EventDate "2022.06.07"]
[EventType "tourn"]
[EventCountry "CZE"]
[SourceTitle "playchess.com"]
[Source "ChessBase"]
[SourceQuality "1"]
[TimeControl "40/5400+30:1800+30"]

{[%evp 17,148,34,34,29,27,25,24,25,29,38,33,10,18,4,35,20,46,39,48,42,43,24,39,3,32,20,50,65,59,57,57,64,74,62,48,47,47,34,76,66,64,37,84,104,115,121,118,112,118,118,141,110,131,131,104,106,109,0,5,-96,-92,-101,-102,-90,-132,-142,-39,-52,0,0,781,0,0,0,0,0,0,0,0,-75,-81,-45,0,0,0,0,0,0,0,0,0,0,0,0,0,0,0,0,0,0,0,0,0,0,0,0,0,0,0,0,0,0,0,0,0,-27983,-27984,-27984,-27985,-27985,-27986,-27987,0,-27990,-27991,-27991,-27992,-27992,-27993,-27996,-27997,-27997,-27998]} 1. d4 {[%emt 0:01:01]} d5 {[%emt 0:00:08]} 2. c4 {[%emt 0:00:03]} c6 {[%emt 0:00:05]} 3. Nf3 {[%emt 0:00:05]} Nf6 {[%emt 0:00:04]} 4. e3 {[%emt 0:00:04]} Bf5 {[%emt 0:00:06]} 5. Nc3 {[%emt 0:00:11]} e6 {[%emt 0:00:05]} 6. Nh4 {[%emt 0:00:03]} Be4 {[%emt 0:00:05]} 7. f3 {[%emt 0:00:04]} Bg6 {[%emt 0:00:06]} 8. Qb3 {[%emt 0:00:06]} Qb6 {[%emt 0:00:18]} 9. Nxg6 {[%emt 0:00:17]} hxg6 {[%emt 0:00:07]} 10. Bd2 {[%emt 0:00:18][%cal Bc1d2,Bd2e1,Be1f2,Bf2g3][%mdl 32] D12: Slav Defence: 3 Nf3 Nf6 4 e3 Bf5.} Nbd7 {[%emt 0:00:31]} 11. O-O-O {[%emt 0:01:12]} Qxb3 {[%emt 0:00:17]} 12. axb3 {[%emt 0:00:06] White has an edge.} Bb4 $5 {[%emt 0:00:21][%mdl 4] Leaves trodden paths.} 13. Kc2 {[%emt 0:04:04]} O-O-O {[%emt 0:00:55]} 14. Bd3 {[%emt 0:00:43]} a6 {[%emt 0:06:24] [#]} 15. Be1 $146 {[%emt 0:13:53]} ({Predecessor:} 15. h3 c5 16. Bc1 cxd4 17. exd4 dxc4 18. bxc4 Nb8 19. Be3 Nc6 20. Be4 Bxc3 21. Kxc3 Nxe4+ 22. fxe4 {1-0 (43) Arsovic,G (2409)-Stankovic,D (2281) Kraljevo 2011}) 15... Bd6 {[%emt 0:05:23]} 16. h4 {[%emt 0:04:47]} Ne8 {[%emt 0:20:33]} 17. e4 {[%emt 0:09:07]} Nc7 {[%emt 0:05:47]} 18. Bf2 {[%emt 0:03:31]} Be7 {[%emt 0:08:54]} 19. g4 {[%emt 0:05:20]} a5 {[%emt 0:12:16]} 20. Bg3 {[%emt 0:15:55]} Nb8 {[%emt 0:03:54]} 21. Be2 {[%emt 0:11:44]} Bd6 {[%emt 0:04:48]} 22. e5 {[%emt 0:06:51]} Bb4 {[%emt 0:03:07]} 23. c5 {[%emt 0:01:14]} (23. Na4 $5 {[%cal Ra4b6]} b5 24. cxb5 $14) 23... b6 {[%emt 0:05:31]} 24. cxb6 {[%emt 0:00:21]} Na8 {[%emt 0:02:53]} 25. Na2 {[%emt 0:04:17]} Be7 {[%emt 0:00:09]} 26. Be1 {[%emt 0:00:31]} Kb7 {[%emt 0:00:52]} 27. Bxa5 {[%emt 0:06:04]} c5 {[%emt 0:00:13]} 28. dxc5 {[%emt 0:04:31]} Bxc5 {[%emt 0:00:35]} 29. b4 {[%emt 0:00:06]} Bxb6 {[%emt 0:04:55]} (29... Be3 $14) 30. f4 $16 {[%emt 0:00:40]} Rc8+ {[%emt 0:04:38]} 31. Nc3 {[%emt 0:00:08]} Nc6 {[%emt 0:04:21][%cal Bb8c6,Bc6a5,Ba5c4,Bc4e3][%mdl 32]} 32. Bxb6 {[%emt 0:00:13]} Nxb6 {[%emt 0:00:05]} 33. Kb3 {[%emt 0:02:58]} Ra8 {[%emt 0:02:39]} 34. b5 {[%emt 0:02:05]} Na5+ {[%emt 0:00:52]} 35. Kb4 {[%emt 0:00:01]} Nac4 {[%emt 0:00:23]} (35... Rhc8 $2 36. b3) 36. b3 {[%emt 0:00:41]} Ne3 {[%emt 0:01:08] ( -> ...Nc2+)} 37. Rc1 {[%emt 0:00:41] Inhibits Nc2+.} (37. Rd3 Nc2+ 38. Kc5 Rac8+ 39. Kd6 Rhd8+ 40. Ke7 Rd7#) (37. Rd2 $1 $16) 37... Rhc8 $11 {[%emt 0:01:32][%cal Oa8a1]} 38. Bf3 {[%emt 0:01:16] [#]} (38. Bd3 $11 {keeps the balance.}) 38... Ra1 $1 $17 {[%emt 0:01:07][%cal Ob7b8]} 39. h5 {[%emt 0:02:23] [#]} (39. Rxa1 $2 Nc2+ 40. Ka5 Ra8#) 39... gxh5 {[%emt 0:00:13] Dancing on a razor blade.} 40. gxh5 {[%emt 0:00:00] [#]} (40. Rxa1 $2 Nc2+ 41. Ka5 Ra8#) 40... Kb8 $1 {[%emt 0:00:00] Black is more active.} 41. f5 {[%emt 0:05:44] [#]} (41. Rxa1 {leads to mate.} Nc2+ 42. Ka5 Kb7 43. Bxd5+ exd5 44. h6 Ra8#) 41... exf5 {[%emt 0:08:02]} 42. h6 $1 $15 {[%emt 0:03:00] [#]} (42. Rxa1 {gets mated.} Nc2+ 43. Ka5 Kb7 44. Bxd5+ Nxd5 45. b6 Nxc3 46. h6 Rc5#) 42... gxh6 {[%emt 0:09:51]} 43. Rxa1 $11 {[%emt 0:17:34]} Nc2+ {[%emt 0:00:06] Pair of Knights!} 44. Ka5 {[%emt 0:00:02]} Kb7 {[%emt 0:00:13][%cal Rc8a8]} 45. Bxd5+ {[%emt 0:00:05]} Nxd5 {[%emt 0:00:05][%cal Rc8a8]} 46. Rxh6 {[%emt 0:00:05][%cal Oa1d1] Black must now prevent Rd1!} Rxc3 {[%emt 0:05:07]} (46... f6 $5 47. Rh7+ Nc7 48. Rxc7+ Rxc7 $11) 47. Ra4 {[%emt 0:05:00]} Nce3 {[%emt 0:04:23]} 48. e6 {[%emt 0:02:13]} (48. Rh7 $11 {remains equal.}) 48... fxe6 $17 {[%emt 0:01:26]} 49. Rxe6 {[%emt 0:00:01]} f4 {[%emt 0:01:12]} (49... Rxb3 $5 {[%cal Rd5c7]} 50. Rg6 Rd3 $17) 50. Rxf4 {[%emt 0:03:04]} Nxf4 {[%emt 0:00:47]} 51. Rb6+ {[%emt 0:00:06]} Kc7 {[%emt 0:01:53]} 52. Rc6+ {[%emt 0:00:01]} Rxc6 {[%emt 0:00:08]} 53. bxc6 {[%emt 0:00:01]} Ned5 {[%emt 0:02:36]} 54. b4 {[%emt 0:00:58]} Nb6 {[%emt 0:00:20]} 55. Kb5 {[%emt 0:00:45]} Ne6 {[%emt 0:01:33]} 56. Ka6 {[%emt 0:00:19]} Kxc6 {[%emt 0:04:28]} 57. b5+ Kc5 {[%emt 0:00:00]} 58. Kb7 $2 {[%emt 0:00:09][%mdl 8192]} (58. Ka7 $11) 58... Nd8+ {[%emt 0:00:00]} 59. Kc7 $2 {[%emt 0:00:17][%mdl 8192]} (59. Ka6 $11) 59... Nf7 {[%emt 0:00:00]} 60. Kb7 $2 {[%emt 0:00:04][%mdl 8192]} (60. Kb8 $11) 60... Ne5 {[%emt 0:00:24]} 61. Kc7 $2 {[%emt 0:00:08][%mdl 8192]} (61. Ka6 $11) 61... Ned7 {[%emt 0:00:13]} 62. Kd8 $2 {[%emt 0:00:45][%mdl 8192]} (62. Kb7 $11) 62... Kd6 {[%emt 0:00:17]} 63. Ke8 {[%emt 0:00:02]} Ne5 {[%emt 0:00:44]} 64. Kf8 $2 {[%emt 0:00:05][%mdl 8192]} (64. Kd8 $11) 64... Ke6 {[%emt 0:00:09]} 65. Kg7 $2 {[%emt 0:00:15][%mdl 8192]} (65. Ke8 $11) 65... Kf5 {[%emt 0:00:14]} 66. Kh6 $2 {[%emt 0:00:22][%mdl 8192] [#]} (66. Kh7 $11) 66... Kg4 $1 {[%emt 0:00:06]} 67. Kh7 {[%emt 0:00:08]} Kh5 {[%emt 0:00:27]} 68. Kg7 {[%emt 0:00:02]} Kg5 {[%emt 0:00:05]} 69. Kh7 {[%emt 0:00:04]} Nf7 {[%emt 0:00:49]} 70. Kg7 $2 {[%emt 0:00:12][%mdl 8192]} (70. Kg8 $11) 70... Nd6 {[%emt 0:00:14] Black mates.} 71. Kh7 {[%emt 0:00:48]} Nf5 {[%emt 0:00:16]} 72. Kg8 {[%emt 0:00:08]} Kf6 {[%emt 0:00:13]} 73. Kh7 {[%emt 0:00:07]} Kf7 {[%emt 0:00:30]} 74. Kh8 {[%emt 0:00:07]} Nd7 {[%emt 0:00:44] Quite a comeback for Black.  Weighted Error Value: White=0.13 (very precise) /Black=0.11 (very precise)} 0-1

[Event "Prague Festival-Masters 2022"]
[Site "Prague"]
[Date "2022.06.11"]
[Round "4.4"]
[White "Anton Guijarro, David"]
[Black "Vallejo Pons, Francisco"]
[Result "0-1"]
[ECO "C02"]
[WhiteElo "2691"]
[BlackElo "2704"]
[Annotator "TA"]
[PlyCount "80"]
[EventDate "2022.06.07"]
[EventType "tourn"]
[EventCountry "CZE"]
[SourceTitle "playchess.com"]
[Source "ChessBase"]
[SourceQuality "1"]
[TimeControl "40/5400+30:1800+30"]

{[%evp 12,80,17,10,21,0,5,-13,-26,-22,-39,-41,-44,-48,-50,-45,-48,-60,-59,-43,-37,-56,-48,-97,-22,-25,-24,-31,-25,-12,-16,-48,-31,-131,-131,-124,-78,-123,-105,-150,-128,-119,-115,-110,-100,-124,-127,-151,-152,-172,-147,-154,-47,-189,-182,-284,-285,-287,-271,-520,-511,-812,-803,-29977,-29978,-29978,-1116,-29994,-29986,-29986,-29987]} 1. e4 {[%emt 0:00:06]} e6 {[%emt 0:00:55]} 2. d4 {[%emt 0:00:31]} d5 {[%emt 0:00:08]} 3. e5 {[%emt 0:00:25]} c5 {[%emt 0:00:09]} 4. c3 {[%emt 0:00:05]} Nc6 {[%emt 0:01:59]} 5. Nf3 {[%emt 0:00:58]} Qb6 {[%emt 0:08:58]} 6. a3 {[%emt 0:01:12]} Nh6 {[%emt 0:02:05]} 7. Bd3 {[%emt 0:11:01]} cxd4 {[%emt 0:02:24] C02: French: Advance Variation.} 8. O-O {[%emt 0:00:18]} (8. cxd4 $5 {[%cal Rb1c3]} Bd7 9. Bc2 $11 (9. Bxh6 gxh6 10. Qe2 Nxd4 $17)) 8... Bd7 {[%emt 0:01:15]} 9. c4 {[%emt 0:24:15] 9.h3 is the modern continuation.} dxc4 {[%emt 0:06:14] The position is equal.} 10. Bxc4 {[%emt 0:01:55] [#]} Qc5 $146 {[%emt 0:32:53][%csl LRc4,LRe5]} ({Predecessor:} 10... O-O-O 11. b4 Kb8 12. Nbd2 f6 13. Re1 f5 14. Nb3 Bc8 15. Bg5 Ne7 16. Nbxd4 Nf7 17. Be3 Qc7 18. Qb3 Ka8 19. Nb5 Qd7 20. Bxa7 b6 21. Bxb6 {1-0 (21) Popovic,I (2001)-Djurisic,D (1906) Belgrade 2018}) 11. Nbd2 {[%emt 0:38:08]} Nxe5 {[%emt 0:02:05]} 12. Nxe5 {[%emt 0:00:53]} Qxe5 {[%emt 0:00:03]} 13. Nf3 {[%emt 0:00:06]} Qc5 {[%emt 0:06:06]} 14. Qe2 {[%emt 0:00:17]} Rc8 {[%emt 0:01:36]} 15. Bd3 {[%emt 0:00:20]} Bd6 {[%emt 0:02:37]} 16. Bxh6 {[%emt 0:04:19]} gxh6 {[%emt 0:00:15]} 17. Rad1 {[%emt 0:00:19]} (17. Rfe1 $15) 17... Rd8 {[%emt 0:04:31]} (17... Ba4 $17 18. Rde1 Bc6) 18. Rfe1 {[%emt 0:02:26]} Qh5 {[%emt 0:03:36]} 19. Be4 {[%emt 0:01:22]} Bb5 {[%emt 0:08:03]} 20. Qc2 {[%emt 0:00:09]} O-O {[%emt 0:01:15]} 21. a4 {[%emt 0:03:15]} Ba6 {[%emt 0:02:22] aiming for ...Bb4.} 22. Bd3 {[%emt 0:03:36]} ({White should try} 22. Bxh7+ $15 Kh8 23. Bd3) 22... Bxd3 $17 {[%emt 0:02:41]} 23. Qxd3 {[%emt 0:00:05]} e5 {[%emt 0:02:34]} (23... Rd7 $142 24. Re4 Be7) 24. Qe4 {[%emt 0:01:54]} Rfe8 {[%emt 0:01:17][%cal Bf8e8,Be8e6,Be6f6][%mdl 32]} 25. Nh4 {[%emt 0:00:50] Prevents f5.} Bb4 {[%emt 0:02:54]} 26. Rf1 {[%emt 0:00:06]} Re6 {[%emt 0:00:26]} 27. Rd3 {[%emt 0:02:14]} Rf6 {[%emt 0:00:26] [#] Against Nf5. Threatens to win with ...Rf4.} 28. g3 {[%emt 0:00:44] Inhibits Rf4.} b6 {[%emt 0:00:58]} 29. Kg2 {[%emt 0:01:36]} a5 {[%emt 0:01:09]} 30. Kh3 {[%emt 0:00:39]} Bf8 {[%emt 0:00:57]} 31. f3 {[%emt 0:01:09] [#]} Kh8 {[%emt 0:02:13]} (31... Bc5 $1 $17 {Hoping for ...Kh8.} 32. f4 exf4 33. Rxf4 Rxf4 34. Qxf4 Rd5) 32. Rc1 {[%emt 0:00:33] Loses the game.} (32. f4 $1 $15 Be7 33. Rdf3) 32... Bc5 $19 {[%emt 0:00:18]} 33. b4 {[%emt 0:00:29]} (33. Re1 {might work better.}) 33... Bxb4 {[%emt 0:01:01]} 34. Rc7 {[%emt 0:00:20]} Qg5 {[%emt 0:00:29]} 35. f4 $2 {[%emt 0:00:35]} (35. Ra7) 35... exf4 {[%emt 0:00:20][%cal Be5f4,Bf4f3][%mdl 32]} 36. Rxd4 {[%emt 0:00:08]} (36. Rc6 $142 Rxc6 37. Qxc6) 36... Rg8 {[%emt 0:00:14] ...Qg4+ is the strong threat.} 37. Qd5 {[%emt 0:01:08]} Qg4+ {[%emt 0:00:36]} 38. Kg2 {[%emt 0:00:01]} Qxh4 {[%emt 0:00:20]} (38... Qe2+ $142 39. Kh3 fxg3 40. Rc2 Qxc2 41. hxg3 Rf2 42. Ng2 Rg5 43. Rc4 Rxd5 44. Rxc2 Rh5+ 45. Kg4 Rg5+ 46. Kh3 Rh5+ 47. Kg4 Rg5+ 48. Kh3 Rxc2 49. Ne3 Rf2 50. Ng2 Bd6 51. Kh2 Bxg3+ 52. Kg1 Re5 53. Ne3 Rxe3 54. Kh1 Re1#) 39. Rxf7 {[%emt 0:00:47]} Rxf7 {[%emt 0:00:19]} 40. Qxf7 {[%emt 0:00:00]} f3+ {[%emt 0:00:00] Weighted Error Value: White=0.88/Black=0.39} 0-1

[Event "Prague Festival-Masters 2022"]
[Site "Prague"]
[Date "2022.06.11"]
[Round "4.5"]
[White "Shankland, Sam"]
[Black "Vidit, Santosh Gujrathi"]
[Result "1/2-1/2"]
[ECO "B22"]
[WhiteElo "2718"]
[BlackElo "2723"]
[Annotator "TA"]
[PlyCount "61"]
[EventDate "2022.06.07"]
[EventType "tourn"]
[EventCountry "CZE"]
[SourceTitle "playchess.com"]
[Source "ChessBase"]
[SourceQuality "1"]
[TimeControl "40/5400+30:1800+30"]

{[%evp 12,61,7,13,0,14,14,3,19,20,13,12,6,0,0,0,9,0,4,2,0,0,13,0,22,26,22,26,22,13,23,0,0,0,0,0,0,0,0,-8,0,0,-5,-6,0,0,0,0,0,0,0,0]} 1. e4 {[%emt 0:00:10]} c5 {[%emt 0:00:19]} 2. Nf3 {[%emt 0:00:21]} e6 {[%emt 0:00:13]} 3. c3 {[%emt 0:07:04]} d5 {[%emt 0:01:04]} 4. exd5 {[%emt 0:00:03]} Qxd5 {[%emt 0:00:14]} 5. d4 {[%emt 0:00:12]} Nf6 {[%emt 0:00:28]} 6. Na3 {[%emt 0:01:35]} Nc6 {[%emt 0:09:17]} 7. Be3 {[%emt 0:03:22] Black should prevent Nb5. is the new trend.} (7. Bc4 $5 {[%cal Rc4d5]} Qd7 8. O-O $11) 7... cxd4 {[%emt 0:02:06] B22: Sicilian: 2 c3.} (7... Ng4 {feels hotter.} 8. Bg5 Bd7 9. h3 Nf6) 8. Nb5 $1 {[%emt 0:00:12] [#] Strongly threatening Nc7+.} Qd7 {[%emt 0:02:20] Inhibits Nc7+.} 9. Nbxd4 {[%emt 0:00:09]} Be7 {[%emt 0:03:05]} 10. Nxc6 {[%emt 0:11:19]} Qxc6 {[%emt 0:00:39]} 11. Ne5 {[%emt 0:02:40]} Qe4 {[%emt 0:01:09]} 12. Bb5+ {[%emt 0:05:36]} Kf8 {[%emt 0:00:08]} 13. Nf3 {[%emt 0:02:27] [#]} Ng4 $146 {[%emt 0:09:11][%cal Bf6g4,Bg4h6,Bh6f5][%mdl 32]} ({Predecessor:} 13... Nd5 14. Bd3 Qg4 15. O-O Nf4 16. Bxf4 Qxf4 17. Re1 Bf6 18. Re4 Qd6 19. Bc2 Qc7 {0-1 (52) Zhou,G (2238)-Beerdsen,T (2482) Groningen 2019}) 14. Qd4 {[%emt 0:09:24]} Qxd4 {[%emt 0:00:22]} 15. Bxd4 {[%emt 0:00:03]} f6 {[%emt 0:00:23]} 16. h3 {[%emt 0:02:08]} Nh6 {[%emt 0:00:16]} 17. O-O-O {[%emt 0:02:41]} Nf5 {[%emt 0:07:51] [#]} 18. Bc5 $1 {[%emt 0:02:19] aiming for Rd8+.} Kf7 {[%emt 0:00:24][%cal Bf8f7,Bf7e7,Be7d8,Bd8c7][%mdl 32]} 19. Bxe7 {[%emt 0:00:24]} Kxe7 {[%emt 0:00:20]} 20. Rhe1 {[%emt 0:04:19]} e5 {[%emt 0:20:28]} 21. Ba4 {[%emt 0:08:22][%cal Of3e5]} Rd8 {[%emt 0:06:48] The position is equal.} 22. Rxd8 {[%emt 0:08:59]} Kxd8 {[%emt 0:00:07]} 23. Bc2 {[%emt 0:00:07]} h6 {[%emt 0:02:13]} 24. Nd2 {[%emt 0:01:42]} Bd7 {[%emt 0:05:24]} 25. g3 {[%emt 0:01:02]} Nd6 {[%emt 0:00:55]} 26. h4 {[%emt 0:00:06]} Kc7 {[%emt 0:00:52]} 27. Bg6 {[%emt 0:01:19]} Be8 {[%emt 0:01:24]} 28. Bd3 {[%emt 0:00:40]} Bf7 {[%emt 0:01:48]} 29. Kc2 {[%emt 0:00:49]} b5 {[%emt 0:04:34]} ({But not} 29... Bxa2 30. b3 $16) 30. f4 {[%emt 0:02:52]} Re8 {[%emt 0:02:32]} 31. fxe5 {[%emt 0:01:08] A balanced but interesting game.  Weighted Error Value: White=0.03 (flawless) /Black=0.03 (flawless)} 1/2-1/2

[Event "Prague Festival-Masters 2022"]
[Site "Prague"]
[Date "2022.06.13"]
[Round "5.1"]
[White "Harikrishna, Pentala"]
[Black "Navara, David"]
[Result "1/2-1/2"]
[ECO "D85"]
[WhiteElo "2705"]
[BlackElo "2682"]
[Annotator "TA"]
[PlyCount "103"]
[EventDate "2022.06.07"]
[EventType "tourn"]
[EventCountry "CZE"]
[SourceTitle "playchess.com"]
[Source "ChessBase"]
[SourceQuality "1"]
[TimeControl "40/5400+30:1800+30"]

{[%evp 19,103,0,7,0,0,0,0,0,0,0,4,0,0,0,0,0,0,0,0,0,0,0,0,0,0,0,-7,-1,-5,-14,-13,-12,-24,-19,-10,-12,0,0,0,0,0,0,0,-20,0,0,0,0,0,-16,-10,-69,-69,-69,-69,-69,-69,-69,-69,-69,-69,-69,-69,-69,-69,-69,-69,-69,-69,-69,-54,-54,-54,-99,-99,-99,-99,-99,-99,-99,-99,-99,-99,-99,-44,-44]} 1. d4 {[%emt 0:00:04]} Nf6 {[%emt 0:00:07]} 2. c4 {[%emt 0:00:05]} g6 {[%emt 0:00:05]} 3. Nc3 {[%emt 0:00:04]} d5 {[%emt 0:00:05]} 4. cxd5 {[%emt 0:00:11]} Nxd5 {[%emt 0:00:06]} 5. e4 {[%emt 0:00:05]} Nxc3 {[%emt 0:00:07]} 6. bxc3 {[%emt 0:00:04]} Bg7 {[%emt 0:00:08]} 7. Nf3 {[%emt 0:00:03]} c5 {[%emt 0:00:12]} 8. Bb5+ {[%emt 0:00:05]} Nc6 {[%emt 0:00:39]} 9. O-O {[%emt 0:00:17]} O-O {[%emt 0:02:48]} 10. Bxc6 $1 {[%emt 0:00:46][%mdl 4] is currently scoring better than 10.Be3.} bxc6 {[%emt 0:00:07]} 11. Qc2 {[%emt 0:00:12] D85: Exchange Grünfeld: Unusual White 7th moves and lines with 7 Nf3.} cxd4 {[%emt 0:07:44]} 12. cxd4 {[%emt 0:00:12]} Bg4 {[%emt 0:00:06]} 13. Ne5 $1 {[%emt 0:01:13] The position is equal.} Qxd4 {[%emt 0:00:08]} 14. Bb2 {[%emt 0:00:20][%cal Bc1b2,Bb2e5,Be5c3][%mdl 32]} Qb4 {[%emt 0:02:45]} 15. Rab1 {[%emt 0:01:57]} Bxe5 {[%emt 0:12:30]} 16. Bxe5 {[%emt 0:00:12]} Qa5 {[%emt 0:04:25]} 17. Bc3 {[%emt 0:05:39]} Qc5 {[%emt 0:03:30]} 18. Qb2 {[%emt 0:04:55]} a5 {[%emt 0:12:30]} 19. Bd4 {[%emt 0:17:04]} Qd6 {[%emt 0:08:29]} 20. Qc3 {[%emt 0:11:24]} Be2 {[%emt 0:11:40]} 21. Rfe1 {[%emt 0:16:36]} Bb5 {[%emt 0:00:13] [#]} 22. Bc5 $146 {[%emt 0:10:17]} ({Predecessor:} 22. a4 Bxa4 23. Bh8 f6 24. e5 Qd8 25. exf6 exf6 26. Rb7 Rf7 27. Rxf7 Kxf7 {1-0 (64) Bluebaum,M (2642)-Ivic,V (2610) Terme Catez 2022}) 22... Qe6 {[%emt 0:03:39]} 23. Rbd1 {[%emt 0:02:01]} a4 {[%emt 0:01:30]} 24. Rd2 {[%emt 0:01:54]} Rfd8 {[%emt 0:01:10]} 25. h3 {[%emt 0:02:12]} Rxd2 {[%emt 0:15:17]} (25... Rab8 {is interesting.} 26. a3 Rxd2 27. Qxd2 Qe5) 26. Qxd2 {[%emt 0:00:07]} Bc4 {[%emt 0:00:17]} 27. a3 {[%emt 0:01:26]} Bb3 {[%emt 0:00:07]} 28. Qd4 {[%emt 0:05:44]} Re8 {[%emt 0:01:22]} 29. Re2 {[%emt 0:03:03]} f6 {[%emt 0:06:24]} 30. Rd2 {[%emt 0:03:49]} g5 {[%emt 0:03:10]} 31. Qe3 {[%emt 0:04:31]} Qe5 {[%emt 0:01:08]} 32. Bd4 {[%emt 0:03:41]} (32. Rd7 {with more complications.} Kf7 33. Bb4 Kg6 34. f3) 32... Qf4 {[%emt 0:00:34]} 33. Qxf4 {[%emt 0:01:20]} gxf4 $11 {[%emt 0:00:08][%mdl 4096] Endgame KRB-KRB} 34. Bb6 {[%emt 0:00:07]} Kf7 {[%emt 0:01:28]} 35. Rd8 {[%emt 0:00:09]} (35. Rd7 $11) 35... Rxd8 $15 {[%emt 0:01:01]} 36. Bxd8 {[%emt 0:00:06] KB-KB} e5 {[%emt 0:01:18]} 37. f3 {[%emt 0:00:56]} Ke6 {[%emt 0:00:55]} 38. Kf2 {[%emt 0:00:49]} Bc2 {[%emt 0:00:48]} 39. g3 {[%emt 0:02:56]} fxg3+ {[%emt 0:00:12]} 40. Kxg3 {[%emt 0:00:00]} f5 {[%emt 0:00:00]} 41. exf5+ {[%emt 0:34:24]} Bxf5 {[%emt 0:02:45]} 42. h4 {[%emt 0:00:00]} Kd5 {[%emt 0:00:29]} 43. Kf2 {[%emt 0:00:00]} Kd4 {[%emt 0:00:51]} 44. Ke2 {[%emt 0:00:00]} c5 {[%emt 0:01:18]} 45. Kd2 {[%emt 0:00:00]} Bg6 {[%emt 0:01:01] Hoping for ...Bh5.} 46. Ba5 {[%emt 0:00:00] [#]} Bh5 $1 {[%emt 0:00:52]} 47. Bc3+ {[%emt 0:00:00]} Kd5 {[%emt 0:00:13]} 48. Ke3 {[%emt 0:00:00]} Kc4 {[%emt 0:00:07]} 49. Bxe5 {[%emt 0:00:00]} Kb3 {[%emt 0:00:06]} 50. Kd2 {[%emt 0:00:00]} Bxf3 {[%emt 0:00:16]} 51. Bd6 {[%emt 0:00:00]} Kxa3 {[%emt 0:01:19]} (51... c4 $17 52. Kc1 Bd5) 52. Kc3 {[%emt 0:00:00] Weighted Error Value: White=0.06 (flawless) /Black=0.03 (flawless)} 1/2-1/2